[Event "Budapest One Week IM-A 03-2025"]
[Site "Budapest"]
[Date "2025.03.19"]
[Round "4.2"]
[White "Ratsma, Midas"]
[Black "Chakrabarty, Reyaansh"]
[Result "1-0"]
[Annotator "TA"]
[ECO "B12"]
[WhiteElo "2268"]
[BlackElo "2181"]
[PlyCount "113"]
[EventDate "2025.03.17"]
[EventType "tourn"]
[EventCountry "HUN"]
[SourceTitle "playchess.com"]
[Source "ChessBase"]
[SourceQuality "1"]
[TimeControl "5400+30"]

{[%evp 9,113,12,11,13,11,13,9,0,13,0,14,13,34,36,59,39,90,0,0,0,0,0,23,11,27,-50,-35,-41,-49,-48,-50,-47,-61,-72,-79,-68,-49,-54,-26,-26,-31,-48,-22,-16,127,141,147,137,139,142,154,154,154,159,170,176,170,163,164,149,188,164,146,154,146,158,252,259,250,84,84,70,89,70,33,44,46,52,138,0,4312,5073,5061,4336,5041,1132,2247,1940,1205,1102,6214,1050,29970,29970,5077,2223,29974,29975,29982,29983,29983,29984,29984,29985,29983,29984]} 1. e4 {[%emt 0:00:03]} c6 {[%emt 0:02:47]} 2. d4 {[%emt 0:00:06]} d5 {[%emt 0:00:05]} 3. e5 {[%emt 0:00:04]} c5 {[%emt 0:00:06]} 4. Nf3 {[%emt 0:00:06]} cxd4 {[%emt 0:00:07]} 5. Nxd4 {[%emt 0:00:06]} Nc6 {[%emt 0:00:02]} 6. Nxc6 {[%emt 0:00:12] B12: Caro-Kann: Advance Variation.} bxc6 {[%emt 0:00:04]} 7. Bd3 {[%emt 0:00:07]} e6 {[%emt 0:00:02]} 8. Nd2 {[%emt 0:00:08] The position is equal.} Ne7 {[%emt 0:01:03][%cal Bg8e7,Be7g6,Bg6f4,Bf4d3][%mdl 32]} 9. Qe2 {[%emt 0:00:13] Recently 9.Nf3 got a lot of attention.} Ng6 {[%emt 0:00:28]} 10. Nf3 {[%emt 0:00:46]} Be7 {[%emt 0:01:20]} 11. h4 {[%emt 0:02:24]} Qa5+ $146 {[%emt 0:17:50]} (11... f6 12. exf6 gxf6 13. h5 Nf8 14. Bh6 e5 15. Bg7 Rg8 16. Bxf8 Kxf8 17. Bxh7 Rh8 {1-0 Ahmadzada,A (2542)-Yaniv,Y (2421) EU-ch 24th Petrovac 2024 (11)}) 12. Bd2 {[%emt 0:04:27]} Qa4 {[%emt 0:00:01]} (12... Qc7 $14) 13. h5 {[%emt 0:01:50]} (13. c4 $16) 13... Nf4 $11 {[%emt 0:00:31]} 14. b3 {[%emt 0:08:53]} Nxd3+ {[%emt 0:00:09] A sharp opening} 15. Qxd3 {[%emt 0:00:05]} Qa3 {[%emt 0:15:06]} 16. h6 {[%emt 0:15:07]} gxh6 {[%emt 0:00:18]} 17. O-O {[%emt 0:06:11] White sacrificed a pawn} (17. Rxh6 $11 Bb7 18. Rc1 (18. Rxh7 O-O-O $11)) 17... Ba6 $15 {[%emt 0:00:17]} 18. c4 {[%emt 0:01:09] [#]} Bxc4 $1 {[%emt 0:03:05]} 19. Qc3 {[%emt 0:03:29]} (19. Qc2 Bb5) 19... Bb5 {[%emt 0:00:06]} 20. Nd4 {[%emt 0:00:37]} Qc5 {[%emt 0:00:23]} 21. Rfc1 {[%emt 0:11:15]} Qxc3 {[%emt 0:00:20]} 22. Rxc3 {[%emt 0:02:36][%cal Oa2a4]} Bb4 {[%emt 0:00:30]} 23. Rc2 {[%emt 0:00:24]} Bxd2 {[%emt 0:00:50]} 24. Rxd2 {[%emt 0:00:04]} Kd7 {[%emt 0:00:27]} 25. Rc1 {[%emt 0:01:18]} Rac8 {[%emt 0:02:34]} 26. Rdc2 {[%emt 0:01:48] [#]} f6 {[%emt 0:02:08]} 27. exf6 $16 {[%emt 0:01:06] White is more active.} Bd3 {[%emt 0:02:01]} 28. Rxc6 {[%emt 0:23:11]} Rxc6 {[%emt 0:00:45]} 29. Nxc6 {[%emt 0:02:59][%mdl 4096] Endgame KRB-KRN} Kd6 {[%emt 0:00:04] Dodges Ne5} 30. f4 {[%emt 0:02:51][%cal Oc6e5]} Rc8 {[%emt 0:00:04]} 31. Rc3 $1 {[%emt 0:00:33][%cal Of6f7]} (31. f7 Bb5 (31... Bg6 32. Rd1 $15) 32. f8=B+ Rxf8 33. Nxa7 Bd7 $19) 31... d4 {[%emt 0:12:41]} 32. Rxd3 {[%emt 0:01:11]} Kxc6 {[%emt 0:00:03]} 33. Rxd4 $18 {KR-KR. White is a pawn up.} Rf8 34. Rc4+ {[%emt 0:03:23]} Kb6 {[%emt 0:04:56]} 35. Kf2 {[%emt 0:01:30]} Rxf6 {[%emt 0:00:04]} 36. Ke3 {[%emt 0:01:01]} Rg6 {[%emt 0:04:06]} 37. Kf3 {[%emt 0:01:35]} a5 {[%emt 0:01:25]} (37... h5 $16 38. g3 Rh6) 38. g4 {[%emt 0:01:20]} Rf6 {[%emt 0:00:31]} 39. Ke4 $2 {[%emt 0:00:45]} (39. Rc8 $18 {and White stays clearly on top.}) 39... Rg6 $16 {[%emt 0:00:01]} 40. Ke5 {[%emt 0:00:33]} (40. Kf3 Kb7 41. Rc5 Kb6 $18) 40... Rxg4 {[%emt 0:00:01]} 41. Kxe6 {[%emt 0:00:09]} h5 $1 {[%emt 0:00:05]} 42. f5 {[%emt 0:02:18] Black must now prevent f6.} Rxc4 $1 {[%emt 0:02:31]} 43. bxc4 $14 {[%emt 0:00:04] K3P-K3P} h4 $1 {[%emt 0:00:01] [#] And now ...h3 would win.} 44. c5+ {[%emt 0:00:20]} Kb5 {[%emt 0:00:23][%mdl 8192] [#]} (44... Kxc5 $2 45. f6 $18) (44... Kc7 $11 45. f6 h3) 45. c6 $1 $18 {[%emt 0:00:39][%mdl 512]} h3 {[%emt 0:00:04]} 46. c7 {[%emt 0:00:04]} h2 {[%emt 0:00:02]} 47. c8=Q {[%emt 0:00:05]} (47. c8=R $2 h1=Q (47... h1=R $2 {loses.} 48. f6 $18) 48. Rb8+ Kc5 $19 (48... Ka4 $2 49. Rf8 $19)) 47... h1=Q {[%emt 0:00:04] KQ-KQ} 48. Qd7+ {[%emt 0:01:09]} Kb4 {[%emt 0:03:30]} 49. Qd6+ {[%emt 0:00:59]} Kc4 {[%emt 0:00:08]} 50. Qc7+ {[%emt 0:00:29]} (50. f6 $142 Qh3+ 51. Ke7) 50... Kd4 {[%emt 0:00:20]} 51. Qe5+ {[%emt 0:01:35]} (51. Qxa5 Qc6+ 52. Ke7 Qb7+ 53. Kd6 Qb8+ 54. Qc7 Qe8 $18) 51... Kc4 {[%emt 0:00:04]} 52. f6 {[%emt 0:01:32][%cal Of6f7]} (52. Qxa5 Qc6+ 53. Ke7 Qe4+ 54. Kf8 Qc6 $18) 52... Qh3+ {[%emt 0:00:39]} 53. Ke7 {[%emt 0:00:13] White mates.} Qa3+ {[%emt 0:00:06]} 54. Qd6 {[%emt 0:00:30]} Qb2 {[%emt 0:00:25]} 55. Qc6+ {[%emt 0:00:50]} Kd3 {[%emt 0:00:02]} 56. Qd5+ {[%emt 0:00:17]} Ke3 {[%emt 0:00:07]} 57. Qb3+ {[%emt 0:00:15] Weighted Error Value: White=0.29 (precise) /Black=0.55  Loses game:     	---       	Black=1      Missed win:     	White=1     	---        Mistake:       	White=3     	Black=3      Inaccurate:     	---       	Black=2      OK:         	White=19    	Black=7      Best:        	White=2     	Black=9      Strong:       	White=1     	Black=3      Brilliant:      	White=1     	Black=1} 1-0

[Event "Budapest One Week IM-A 03-2025"]
[Site "Budapest"]
[Date "2025.03.19"]
[Round "4.3"]
[White "Foldes, Marton Gabor"]
[Black "Krizsany, Laszlo"]
[Result "0-1"]
[Annotator "TA"]
[ECO "B12"]
[WhiteElo "2332"]
[BlackElo "2287"]
[PlyCount "60"]
[EventDate "2025.03.17"]
[EventType "tourn"]
[EventCountry "HUN"]
[SourceTitle "playchess.com"]
[Source "ChessBase"]
[SourceQuality "1"]
[TimeControl "5400+30"]

{[%evp 12,60,11,11,17,10,14,4,14,8,0,5,0,-43,0,-26,-27,-56,-20,-23,0,-13,0,-14,-29,-25,-10,-4,-6,-17,0,0,44,-22,-5,-170,-120,-118,-137,-136,-112,-135,-133,-150,-149,-624,-627,-623,-619,-587,-577]} 1. e4 {[%emt 0:00:14]} c6 {[%emt 0:00:07]} 2. d4 {[%emt 0:00:17]} d5 {[%emt 0:00:04]} 3. e5 {[%emt 0:00:04]} Bf5 {[%emt 0:00:06]} 4. Nf3 {[%emt 0:00:07]} e6 {[%emt 0:00:05]} 5. Be2 {[%emt 0:00:03]} c5 {[%emt 0:00:10]} 6. c3 {[%emt 0:00:09]} Nc6 {[%emt 0:00:09]} 7. O-O {[%emt 0:00:31]} cxd4 {[%emt 0:00:21] B12: Caro-Kann: Advance Variation.} 8. Nxd4 {[%emt 0:01:26]} Nge7 {[%emt 0:00:14]} 9. Bb5 {[%emt 0:00:10]} a6 {[%emt 0:00:15] The position is equal.} (9... Bxb1 10. Rxb1 a6 11. Bxc6+ Nxc6 12. Nxc6 bxc6 13. Qa4 Qd7 14. b4 Be7 15. Be3 O-O 16. f4 Qc7 17. Bc5 {½-½ Foldes,M (2261)-Krizsany,L (2316) Budapest One Week IM-A 12 2024 (8)}) 10. Bxc6+ {[%emt 0:00:40]} bxc6 {[%emt 0:00:06]} 11. b4 {[%emt 0:00:44]} Qc7 {[%emt 0:00:19]} 12. Qa4 $146 {[%emt 0:10:07]} (12. Re1 h6 13. Nd2 g5 14. N2b3 Bg7 15. Qe2 O-O 16. a4 Bh7 17. g3 Nf5 18. a5 Nxd4 19. cxd4 {1-0 Sousa,A (2441)-Morais,M (1986) Figueira da Foz op 17th 2023 (5)}) 12... Bd3 {[%emt 0:07:50]} 13. Rd1 {[%emt 0:18:06]} Bb5 {[%emt 0:02:37]} 14. Qc2 {[%emt 0:00:14]} c5 {[%emt 0:02:54]} 15. bxc5 {[%emt 0:13:11][%cal Oc3c4]} Ng6 {[%emt 0:03:27]} (15... Nc6 {simplifies} 16. a4 Bc4 17. Nxc6 Qxc6 18. Nd2 Bxc5 19. Nxc4 dxc4 20. Be3 Bxe3 21. fxe3 Rc8) 16. Na3 {[%emt 0:07:15]} Bxc5 {[%emt 0:04:03]} 17. Naxb5 {[%emt 0:13:07]} axb5 {[%emt 0:00:06]} 18. Nxb5 {[%emt 0:01:34]} Qxe5 {[%emt 0:33:05]} 19. Bb2 {[%emt 0:11:52]} O-O {[%emt 0:03:26]} 20. c4 {[%emt 0:03:45][%cal Bc3c4,Bc4d5][%mdl 32]} Qf4 {[%emt 0:14:00]} 21. cxd5 {[%emt 0:04:11]} Rfc8 {[%emt 0:00:12]} 22. Nc3 {[%emt 0:05:40]} (22. dxe6 $14 fxe6 23. Bc3) 22... Ne5 {[%emt 0:07:10]} 23. Rf1 $2 {[%emt 0:06:39]} (23. g3 $11 {and White has nothing to worry.} Qb4 24. a3) 23... Ng4 {[%emt 0:08:26]} (23... Rab8 $1 $19 {and ...Ng4 would now be decisive} 24. Qe2 Ng4) 24. g3 $17 {[%emt 0:00:11]} Qh6 {[%emt 0:00:24][%csl Gg4][%cal Rh6h2] Black has more active pieces.} 25. h4 {[%emt 0:00:22] [#]} exd5 $1 {[%emt 0:00:27]} 26. Qf5 {[%emt 0:01:13]} Qe6 $40 {[%emt 0:00:48][%mdl 128] Black has strong attack.} 27. Qxd5 {[%emt 0:01:28] [#]} Nxf2 $1 {[%emt 0:01:14]} 28. Rxf2 $4 {[%emt 0:00:39][%mdl 8192]} (28. Qxe6 $17 Nd3+ 29. Kh1 fxe6 30. Nd1) 28... Bxf2+ $19 {[%emt 0:00:14] Black is clearly winning.} 29. Kg2 {[%emt 0:00:29]} Qxd5+ {[%emt 0:01:34]} 30. Nxd5 {[%emt 0:00:03] And now Ne7+ would win.} Rc2 {[%emt 0:00:09] Weighted Error Value: White=0.54/Black=0.15 (very precise)   Loses game:     	White=2     	---        Mistake:       	White=1     	Black=1      Inaccurate:     	White=3     	Black=3      OK:         	White=3     	Black=5      Best:        	White=3     	Black=1      Strong:       	---       	Black=2} 0-1

[Event "Budapest One Week IM-A 03-2025"]
[Site "Budapest"]
[Date "2025.03.19"]
[Round "4.4"]
[White "Horvath, David"]
[Black "Nakahara, Kan"]
[Result "1-0"]
[Annotator "TA"]
[ECO "A43"]
[WhiteElo "2279"]
[BlackElo "2113"]
[PlyCount "81"]
[EventDate "2025.03.17"]
[EventType "tourn"]
[EventCountry "HUN"]
[SourceTitle "playchess.com"]
[Source "ChessBase"]
[SourceQuality "1"]
[TimeControl "5400+30"]

{[%evp 22,81,62,42,54,49,57,55,51,48,107,90,116,105,139,137,114,108,101,101,107,107,104,104,122,70,66,46,56,-37,377,411,387,391,403,368,353,352,481,468,487,404,603,606,610,433,508,485,501,483,596,495,466,402,629,599,1362,1302,29984,29985,6403,5802]} 1. d4 {[%emt 0:00:03]} Nf6 {[%emt 0:00:03]} 2. c4 {[%emt 0:00:09]} c5 {[%emt 0:00:10]} 3. d5 {[%emt 0:04:30]} d6 {[%emt 0:00:12]} 4. Nc3 {[%emt 0:01:24]} g6 {[%emt 0:00:04]} 5. e4 {[%emt 0:08:50]} Bg7 {[%emt 0:00:07]} 6. h3 {[%emt 0:00:11]} O-O {[%emt 0:00:50]} 7. Nf3 {[%emt 0:00:06]} e6 {[%emt 0:03:14]} 8. Bd3 {[%emt 0:02:38]} exd5 {[%emt 0:01:02]} 9. exd5 {[%emt 0:00:04]} Re8+ {[%emt 0:01:22]} 10. Be3 {[%emt 0:00:02]} Na6 {[%emt 0:01:11] 10...Rxe3+ is a critical line.} 11. O-O {[%emt 0:02:56]} Nc7 {[%emt 0:01:14]} 12. a4 {[%emt 0:00:17]} Na6 {[%emt 0:00:43] E90: King's Indian: Classical: Early deviations and 6 h3.} 13. Rc1 {[%emt 0:07:14]} Nb4 {[%emt 0:05:15]} 14. Bb1 {[%emt 0:01:40]} a6 {[%emt 0:06:07][%cal Ob7b5] White is slightly better.} 15. Qd2 {[%emt 0:08:23]} Nd7 $146 {[%emt 0:35:29]} (15... Bd7 $14) (15... Bd7 16. Rfe1 Qc8 17. Bf4 Rxe1+ 18. Rxe1 Ne8 19. Ne4 Qc7 20. b3 Bf5 21. g4 Bxe4 22. Bxe4 {1-0 Rustemov,A (2525)-Dauner,B (2321) Titled Tuesday intern op 28th Jun Late blitz 2022 (3)}) 16. Bf4 {[%emt 0:31:44]} Ne5 {[%emt 0:17:05]} 17. Nxe5 {[%emt 0:00:14]} Bxe5 {[%emt 0:00:14]} 18. Bxe5 {[%emt 0:03:30]} dxe5 {[%emt 0:00:13]} 19. f4 {[%emt 0:02:07]} f5 {[%emt 0:01:16]} 20. fxe5 {[%emt 0:03:29]} Rxe5 {[%emt 0:00:15]} 21. Rce1 {[%emt 0:00:27]} Rxe1 {[%emt 0:07:06]} 22. Rxe1 {[%emt 0:00:05]} Bd7 {[%emt 0:00:26]} 23. d6 {[%emt 0:11:37] White plays in the center} (23. Qf4 $16) 23... Qh4 $14 {[%emt 0:07:29][%cal Od7c6]} 24. Nd5 $36 {[%emt 0:02:25][%mdl 2048] White has the initiative.} Nc6 {[%emt 0:01:28][%cal Og8f7] Wards off Re7} 25. Ne7+ {[%emt 0:06:45]} (25. Qc3 $14 Kf7 26. g3 Qd4+ 27. Qxd4 cxd4 28. Nc7) 25... Nxe7 $2 {[%emt 0:00:42][%mdl 8192] This move loses the game for Black.} (25... Kf8 $15 {stays ahead.}) 26. Rxe7 $18 {[%emt 0:00:09]} ({Weaker is} 26. dxe7 Bxa4 27. Qd5+ Kg7 28. Qe5+ Qf6 $15) 26... Bc6 {[%emt 0:00:37] Inhibits Qd5+.} 27. Qc3 {[%emt 0:01:02][%csl Ge7][%cal Rc3g7] [#] Repels Qf6} Qd4+ {[%emt 0:07:32]} 28. Qxd4 {[%emt 0:00:02]} cxd4 {[%emt 0:00:02][%cal Bc5d4,Bd4d3,Bd3d2][%mdl 4128] Endgame KRB-KRB} 29. c5 {[%emt 0:00:42]} Rd8 {[%emt 0:01:47]} 30. Ba2+ {[%emt 0:01:27]} Kh8 {[%emt 0:00:36]} 31. Kf2 {[%emt 0:00:34]} Bxa4 {[%emt 0:01:28]} (31... d3 $142 32. Bc4 (32. Ke3 b6 $18) 32... Bxa4 33. Bxd3 (33. Ke3 b6 $18) 33... Rd7 34. Rxd7 Bxd7) 32. Rxb7 {[%emt 0:00:50]} d3 {[%emt 0:00:25] [#]} 33. b3 {[%emt 0:00:44]} Bb5 {[%emt 0:00:28] And now ...d2 would win.} 34. b4 {[%emt 0:00:15]} (34. Ke3 Bc6 $18) 34... d2 {[%emt 0:00:34]} 35. Bb3 {[%emt 0:00:13]} Bc6 {[%emt 0:00:22]} 36. Rc7 {[%emt 0:00:59]} Bd5 {[%emt 0:00:03]} 37. Bd1 {[%emt 0:00:08]} (37. Bxd5 $2 d1=Q (37... d1=B $2 {perishes.} 38. d7 $18) 38. Bf3 Qd4+ 39. Ke2 Qxb4 $19) 37... Kg8 {[%emt 0:00:38]} (37... g5 $142 38. Re7 h6) 38. g3 {[%emt 0:00:22]} Re8 {[%emt 0:00:38]} 39. d7 {[%emt 0:00:16]} Rf8 {[%emt 0:00:54]} 40. Rc8 {[%emt 0:00:06]} Be6 {[%emt 0:00:14]} 41. Rxf8+ {[%emt 0:00:06] Weighted Error Value: White=0.30/Black=1.03  Loses game:     	---       	Black=1      Mistake:       	White=2     	Black=3      Inaccurate:     	---       	Black=4      OK:         	White=11    	Black=6      Best:        	White=2     	Black=4} (41. d8=R Bxc8 42. Rxd2 Kf7 $16) 1-0

[Event "Budapest One Week IM-A 03-2025"]
[Site "Budapest"]
[Date "2025.03.19"]
[Round "4.5"]
[White "Rydstrom, Tom"]
[Black "Tscheuschner, Georg"]
[Result "1-0"]
[Annotator "TA"]
[ECO "B12"]
[WhiteElo "2301"]
[BlackElo "2236"]
[PlyCount "81"]
[EventDate "2025.03.17"]
[EventType "tourn"]
[EventCountry "HUN"]
[SourceTitle "playchess.com"]
[Source "ChessBase"]
[SourceQuality "1"]
[TimeControl "5400+30"]

{[%evp 9,81,17,17,0,21,6,15,21,22,14,19,22,16,27,18,15,27,7,19,22,27,9,4,11,17,19,35,0,0,20,13,-10,-12,-16,21,17,6,11,68,73,68,68,79,73,83,82,85,35,38,29,94,0,30,52,337,367,326,352,531,566,551,545,516,437,762,743,1072,530,681,529,522,522,1839,1782]} 1. e4 {[%emt 0:05:58]} c6 {[%emt 0:00:07]} 2. d4 {[%emt 0:00:28]} d5 {[%emt 0:00:05]} 3. e5 {[%emt 0:00:21]} c5 {[%emt 0:00:05]} 4. dxc5 {[%emt 0:00:20]} e6 {[%emt 0:00:07]} 5. Nf3 {[%emt 0:00:24]} Bxc5 {[%emt 0:00:16]} 6. a3 {[%emt 0:01:04] B12: Caro-Kann: Advance Variation.} f6 {[%emt 0:01:23]} 7. b4 {[%emt 0:00:09]} Be7 {[%emt 0:00:29]} 8. Bb2 {[%emt 0:00:28] The position is equal.} a5 {[%emt 0:00:33]} 9. b5 {[%emt 0:04:50]} Nd7 {[%emt 0:00:06]} 10. c4 {[%emt 0:00:40]} Nxe5 $1 {[%emt 0:00:40]} 11. Nxe5 {[%emt 0:02:10]} fxe5 {[%emt 0:00:06]} 12. Bxe5 {[%emt 0:01:40]} Nf6 {[%emt 0:00:06]} 13. Nd2 {[%emt 0:01:40]} O-O {[%emt 0:01:18]} 14. Bd3 {[%emt 0:01:17]} b6 {[%emt 0:01:58]} 15. O-O {[%emt 0:00:25]} Bb7 {[%emt 0:01:41]} 16. Qe2 {[%emt 0:02:57]} Bd6 {[%emt 0:40:05]} 17. Bb2 {[%emt 0:01:07]} Qd7 {[%emt 0:09:41]} 18. Rad1 $146 {[%emt 0:01:21]} (18. Nf3 $5) (18. Nf3 Rae8 19. Ne5 Qc7 20. Rac1 Qe7 21. Rc3 Bc5 22. Rb3 a4 23. Rc3 Bd4 24. Rcc1 {1-0 Musiolik,D (2291)-Neugirg,M (1781) GER-ch U18 Willingen 2023 (8)}) 18... Rae8 {[%emt 0:01:24][%cal Od5d4]} 19. Nf3 {[%emt 0:09:17][%cal Bd2f3,Bf3e5,Be5c6][%mdl 32]} Qe7 {[%emt 0:13:40]} 20. Ne5 {[%emt 0:14:42]} Bxa3 {[%emt 0:01:37]} 21. Nc6 {[%emt 0:05:46]} Qd6 {[%emt 0:03:05]} 22. Bxa3 {[%emt 0:01:17]} Qxa3 {[%emt 0:00:05]} 23. Qe3 {[%emt 0:00:02][%cal Od3h7] [#]} Qc5 {[%emt 0:03:17]} (23... Qd6 $1 $11) 24. Qxc5 $14 {[%emt 0:00:14][%csl Oc6] Strong Square White (c6)} bxc5 {[%emt 0:00:01]} 25. Nxa5 {[%emt 0:00:08]} Rb8 {[%emt 0:02:07]} 26. Rb1 $36 {[%emt 0:07:18][%mdl 2048] White is in control.} Nd7 {[%emt 0:01:30]} 27. Rfe1 {[%emt 0:00:29]} Kf7 {[%emt 0:04:33]} 28. h4 {[%emt 0:07:44] White is much more active.} ({Of course not} 28. Bxh7 $6 g6 $11) ({White should try} 28. Rbc1 $16) 28... Nb6 {[%emt 0:02:57]} 29. h5 {[%emt 0:04:12]} h6 {[%emt 0:00:45]} (29... Nxc4 $11 30. Nxc4 (30. Bxc4 dxc4 31. Nxc4 Bd5 $11) 30... dxc4 31. Bxc4 Bd5) 30. Re5 {[%emt 0:02:30]} (30. Rbc1 $16) 30... Nd7 {[%emt 0:04:21]} 31. Re2 {[%emt 0:00:45]} Kf6 $2 {[%emt 0:06:49][%mdl 8192] Loses the game.} (31... dxc4 $1 $14 32. Nxc4 Ke7) 32. Rbe1 $18 {[%emt 0:01:57]} e5 {[%emt 0:00:49][%cal Be6e5,Be5e4][%mdl 32]} 33. Nc6 {[%emt 0:05:39]} Bxc6 {[%emt 0:00:09]} (33... dxc4 $142 34. Nxb8 (34. Bxc4 Bxc6 35. bxc6 Nb6 $18) 34... Rxb8 35. Bxc4 e4) 34. bxc6 {[%emt 0:00:01] White is clearly winning.} e4 {[%emt 0:01:01]} 35. Bc2 {[%emt 0:00:41]} (35. cxd7 exd3 36. Re3 (36. Re6+ Kf7 $11) 36... Kf7 37. Rf3+ (37. Rxd3 dxc4 38. Rd5 Rbd8 $16) (37. cxd5 c4 $11) 37... Kg8 38. Rxd3 dxc4 $18) 35... Nb6 {[%emt 0:00:32]} 36. cxd5 {[%emt 0:00:19]} Nxd5 {[%emt 0:00:08]} (36... Ke5 $142 37. Bxe4 (37. Rxe4+ Kxd5 38. c7 Rbc8 $18) 37... Kd6) 37. Rxe4 {[%emt 0:00:19] [#] And now Re5 would win.} Nc7 {[%emt 0:00:49]} 38. Rf4+ {[%emt 0:01:45]} Kg5 {[%emt 0:00:04]} 39. Rxf8 {[%emt 0:00:08]} Rxf8 {[%emt 0:00:02]} 40. Re7 {[%emt 0:00:07][%csl LRc7,LRg7]} Nd5 {[%emt 0:01:15]} 41. Re5+ {[%emt 0:00:04] Weighted Error Value: White=0.29 (precise) /Black=0.61  Loses game:     	---       	Black=1      Mistake:       	White=2     	Black=4      Inaccurate:     	---       	Black=4      OK:         	White=17    	Black=13     Best:        	White=5     	Black=1      Strong:       	---       	Black=1} 1-0